bitfinex/quotes_BTCUSD_20230404
["timestamp","ask_amount","ask_price","bid_price","bid_amount"]
[1680599458722,0.4535715,28127.0,28124.0,0.08935485]
[1680599458950,0.0237,28125.0,28124.0,0.08935485]
[1680599459629,0.0237,28125.0,28124.0,0.09735485]
[1680599459831,0.0237,28125.0,28124.0,0.09740412]
[1680599460080,0.0257,28125.0,28124.0,0.008]
[1680599460752,0.07684573,28125.0,28124.0,0.008]
[1680599461845,0.02604313,28125.0,28124.0,0.008]
[1680599462292,0.32404313,28125.0,28123.0,0.09239631]
[1680599462522,0.30248269,28125.0,28124.0,0.007]
[1680599462739,0.37813469,28125.0,28124.0,0.007]
[1680599462962,0.32428269,28125.0,28123.0,0.09239631]
[1680599463180,0.37642411,28125.0,28124.0,0.007]
[1680599463426,0.42853311,28125.0,28124.0,0.02316728]
[1680599463644,0.37642411,28125.0,28124.0,0.02316728]
[1680599464095,0.30148269,28125.0,28124.0,0.02316728]
[1680599464990,0.30048269,28125.0,28124.0,0.01616728]
[1680599465288,0.30148269,28125.0,28124.0,0.02316728]
[1680599466168,0.35496969,28125.0,28124.0,0.02316728]
[1680599466400,0.30148269,28125.0,28124.0,0.02316728]
[1680599466542,0.36752778,28125.0,28124.0,0.02316728]
[1680599467631,0.30148269,28125.0,28124.0,0.02316728]
[1680599467836,0.30148269,28125.0,28124.0,0.11245881]
[1680599468123,0.00148269,28125.0,28124.0,0.11245881]
[1680599468342,0.30134313,28125.0,28124.0,0.11245881]
[1680599468581,0.35460769,28125.0,28124.0,0.11245881]
[1680599468805,0.30148269,28125.0,28124.0,0.11245881]
[1680599469041,0.43226951,28125.0,28124.0,0.11245881]
[1680599469459,0.30148269,28125.0,28124.0,0.11245881]
[1680599470074,0.00148269,28125.0,28124.0,0.11245881]
[1680599470303,0.30134313,28125.0,28124.0,0.11245881]
[1680599470453,0.30148269,28125.0,28124.0,0.11245881]
[1680599471446,0.00148269,28125.0,28124.0,0.11245881]
[1680599471690,0.00134313,28125.0,28124.0,0.11245881]
[1680599474491,0.06721086,28125.0,28124.0,0.02316728]
[1680599474932,0.11890586,28125.0,28124.0,0.02316728]
[1680599475378,0.48959084,28125.0,28124.0,0.02316728]
[1680599475600,0.7380354,28125.0,28124.0,0.02316728]
[1680599475870,0.7906644,28125.0,28124.0,0.02316728]
[1680599477646,0.35411169,28125.0,28124.0,0.02316728]
[1680599477865,0.00148269,28125.0,28124.0,0.13825158]
[1680599478094,0.00134313,28125.0,28124.0,0.13825158]
[1680599479480,0.00122752,28125.0,28124.0,0.13825158]
[1680599479708,0.00133982,28125.0,28124.0,0.13825158]
[1680599481064,0.00133982,28125.0,28124.0,0.02316728]
[1680599481756,0.49428433,28125.0,28124.0,0.02316728]
[1680599481983,0.86912433,28125.0,28124.0,0.02316728]
[1680599482209,0.30133982,28125.0,28124.0,0.02316728]
[1680599482895,0.30033982,28125.0,28124.0,0.01616728]
[1680599483124,0.30633982,28125.0,28124.0,0.01716728]
[1680599483351,0.30033982,28125.0,28124.0,0.01616728]
[1680599483573,0.64281933,28125.0,28124.0,0.02316728]
[1680599484509,0.70711522,28125.0,28124.0,0.02316728]
[1680599484737,0.66661933,28125.0,28124.0,0.02316728]
[1680599485407,0.57929882,28125.0,28124.0,0.02316728]
[1680599485865,0.57829882,28125.0,28124.0,0.01616728]
[1680599486081,0.57829882,28125.0,28124.0,0.01716728]
[1680599486082,1.00360549,28125.0,28124.0,0.01716728]
[1680599486313,0.99160549,28125.0,28119.0,0.2082983]
[1680599486547,0.0238,28120.0,28119.0,0.12432763]
[1680599486772,0.0238,28120.0,28119.0,0.2082983]
[1680599487219,0.0238,28120.0,28119.0,0.12432763]
[1680599487446,0.0238,28120.0,28119.0,0.14554175]
[1680599487670,0.06118,28120.0,28119.0,0.04329412]
[1680599487903,0.112434,28120.0,28119.0,0.04323412]
[1680599488176,0.112434,28120.0,28119.0,0.16908755]
[1680599488405,0.112434,28120.0,28119.0,0.2534505]
[1680599488627,0.11276795,28120.0,28119.0,0.12729707]
[1680599488847,0.56473177,28120.0,28119.0,0.04311412]
[1680599489075,0.86473177,28120.0,28119.0,0.04311412]
[1680599489761,0.87337133,28120.0,28119.0,0.04311412]
[1680599489985,0.86837133,28120.0,28119.0,0.04211412]
[1680599490210,0.88737133,28120.0,28119.0,0.04311412]
[1680599491377,0.8692095,28120.0,28119.0,0.04311412]
[1680599491597,0.8502095,28120.0,28119.0,0.04211412]
[1680599491829,0.88584635,28120.0,28119.0,0.04211412]
[1680599492091,0.45544436,28120.0,28119.0,0.04211412]
[1680599492311,0.48244436,28120.0,28119.0,0.04211412]
[1680599492975,0.45544436,28120.0,28119.0,0.04211412]
[1680599493193,0.48244436,28120.0,28119.0,0.04211412]
[1680599493411,0.79754087,28120.0,28119.0,0.0209]
[1680599493853,0.96824087,28120.0,28119.0,0.0209]
[1680599494074,0.62614436,28120.0,28119.0,0.0209]
[1680599494325,1.12614436,28120.0,28119.0,0.0209]
[1680599494558,1.1260648,28120.0,28119.0,0.01184001]
[1680599494798,1.3038748,28120.0,28119.0,0.01184001]
[1680599495022,1.48665553,28120.0,28119.0,0.01184001]
[1680599495243,0.84295553,28120.0,28119.0,0.01184001]
[1680599495463,1.01365553,28120.0,28119.0,0.01184001]
[1680599495681,0.98665553,28120.0,28119.0,0.01184001]
[1680599495946,0.84295553,28120.0,28119.0,0.01184001]
[1680599496167,0.93733504,28120.0,28119.0,0.01184001]
[1680599496388,0.96433504,28120.0,28119.0,0.01184001]
[1680599496605,0.93733504,28120.0,28119.0,0.01184001]
[1680599497062,0.53580431,28120.0,28119.0,0.01184001]
[1680599497321,0.54430431,28120.0,28119.0,0.01184001]
[1680599497538,1.23751064,28120.0,28119.0,0.01184001]
[1680599497750,1.26451064,28120.0,28119.0,0.01184001]
[1680599497978,1.23751064,28120.0,28119.0,0.01184001]
[1680599498223,0.82130431,28120.0,28119.0,0.01184001]
[1680599498446,0.96500431,28120.0,28119.0,0.01184001]
[1680599498668,1.40329307,28120.0,28119.0,0.01184001]
[1680599498887,0.96500431,28120.0,28119.0,0.01184001]
[1680599499113,1.40742896,28120.0,28119.0,0.01184001]
[1680599499341,1.43442896,28120.0,28119.0,0.01184001]
[1680599499564,1.40742896,28120.0,28119.0,0.01184001]
[1680599499812,1.15742896,28120.0,28119.0,0.01184001]
[1680599500032,0.71500431,28120.0,28119.0,0.01184001]
[1680599500259,1.21500431,28120.0,28119.0,0.01184001]
[1680599500490,1.25218004,28120.0,28119.0,0.01184001]
[1680599500713,1.47361724,28120.0,28119.0,0.01184001]
[1680599500935,1.80061724,28120.0,28119.0,0.01184001]
[1680599501386,1.74661724,28120.0,28119.0,0.01184001]
[1680599501610,1.57918004,28120.0,28119.0,0.01184001]
[1680599502070,1.99195967,28120.0,28119.0,0.01184001]
[1680599502300,1.57918004,28120.0,28119.0,0.01184001]
[1680599502813,0.2,28117.0,28116.0,0.01787253]
[1680599503035,0.286723,28117.0,28116.0,0.01787253]
[1680599503258,1.057483,28117.0,28116.0,0.01787253]
[1680599503935,1.084483,28117.0,28116.0,0.01787253]
[1680599504150,1.45782968,28117.0,28116.0,0.01787253]
[1680599504378,1.62540584,28117.0,28116.0,0.01787253]
[1680599504618,1.65240584,28117.0,28116.0,0.01787253]
[1680599504851,1.62540584,28117.0,28116.0,0.01787253]
[1680599505073,1.65240584,28117.0,28116.0,0.01787253]
[1680599505300,1.62540584,28117.0,28116.0,0.01787253]
[1680599505520,1.65240584,28117.0,28116.0,0.01787253]
[1680599505989,1.27905916,28117.0,28116.0,0.01787253]
[1680599506454,1.25205916,28117.0,28116.0,0.01787253]
[1680599506678,1.27905916,28117.0,28116.0,0.01787253]
[1680599506897,1.61045229,28117.0,28116.0,0.01787253]
[1680599507122,1.64928809,28117.0,28116.0,0.01787253]
[1680599507344,1.62228809,28117.0,28116.0,0.01787253]
[1680599507552,1.64928809,28117.0,28116.0,0.01787253]
[1680599507792,1.64963036,28117.0,28116.0,0.01787253]
[1680599508003,1.27940143,28117.0,28116.0,0.01787253]
[1680599510279,1.27940143,28117.0,28116.0,0.01330253]
[1680599510977,0.2,28114.0,28113.0,0.00947041]
[1680599511206,0.288923,28114.0,28113.0,0.00947041]
[1680599511445,0.459683,28114.0,28113.0,0.00947041]
[1680599511673,1.06002464,28114.0,28113.0,0.00947041]
[1680599511881,1.059683,28114.0,28113.0,0.00947041]
[1680599512096,1.22724467,28114.0,28113.0,0.00947041]
[1680599512332,1.25424467,28114.0,28113.0,0.00947041]
[1680599512567,1.22724467,28114.0,28113.0,0.00947041]
[1680599512774,1.25424467,28114.0,28113.0,0.00947041]
[1680599513233,1.22724467,28114.0,28113.0,0.00947041]
[1680599513455,1.25424467,28114.0,28113.0,0.00947041]
[1680599513700,1.22724467,28114.0,28113.0,0.00947041]
[1680599513915,1.25424467,28114.0,28113.0,0.00947041]
[1680599514137,1.22724467,28114.0,28113.0,0.00935664]
[1680599515095,1.51834604,28114.0,28113.0,0.00935664]
[1680599515328,1.19134604,28114.0,28113.0,0.00935664]
[1680599515562,1.24544604,28114.0,28113.0,0.00935664]
[1680599515786,1.24584023,28114.0,28113.0,0.00935664]
[1680599516010,0.78697719,28114.0,28113.0,0.00935664]
[1680599516267,0.2,28108.0,28107.0,0.00564807]
[1680599516516,0.2,28108.0,28101.0,0.01570762]
[1680599516517,0.2,28105.0,28101.0,0.01570762]
[1680599516760,0.080392,28104.0,28100.0,0.11718074]
[1680599517024,0.080392,28104.0,28100.0,0.01593977]
[1680599517025,0.05534,28103.0,28100.0,0.01593977]
[1680599517454,0.42003844,28102.0,28100.0,0.01593977]
[1680599517671,0.40110684,28101.0,28100.0,0.01593977]
[1680599517887,0.4012464,28101.0,28100.0,0.01593977]
[1680599518358,0.4097464,28101.0,28100.0,0.01593977]
[1680599518575,0.4207464,28101.0,28100.0,0.01593977]
[1680599518796,0.42113788,28101.0,28100.0,0.01593977]
[1680599519009,0.35410004,28101.0,28100.0,0.01593977]
[1680599519223,0.37210004,28101.0,28100.0,0.01593977]
[1680599519451,0.35410004,28101.0,28100.0,0.01593977]
[1680599519672,0.37210004,28101.0,28100.0,0.01593977]
[1680599519884,0.71088318,28101.0,28100.0,0.01593977]
[1680599520102,0.7846915,28101.0,28100.0,0.01593977]
[1680599521169,0.93578634,28101.0,28100.0,0.01593977]
[1680599521843,0.91778634,28101.0,28100.0,0.01593977]
[1680599522080,0.87097802,28101.0,28100.0,0.01593977]
[1680599523625,0.84397802,28101.0,28100.0,0.01593977]
[1680599523852,0.41670004,28101.0,28100.0,0.01593977]
[1680599524087,0.76077196,28101.0,28100.0,0.01593977]
[1680599524312,0.41670004,28101.0,28100.0,0.01593977]
[1680599524544,0.47898974,28101.0,28100.0,0.01593977]
[1680599525019,0.64980974,28101.0,28100.0,0.01593977]
[1680599525463,0.82773974,28101.0,28100.0,0.01593977]
[1680599527699,0.97773974,28101.0,28100.0,0.01593977]
[1680599527927,0.97773974,28101.0,28099.0,0.01522074]
[1680599527928,0.3,28100.0,28099.0,0.01522074]
[1680599528152,0.80639897,28100.0,28099.0,0.01522074]
[1680599528375,0.97721897,28100.0,28099.0,0.01522074]
[1680599528864,0.97727897,28100.0,28099.0,0.01522074]
[1680599529312,0.97721897,28100.0,28099.0,0.01522074]
[1680599529529,0.97727897,28100.0,28099.0,0.01522074]
[1680599530469,1.00427897,28100.0,28099.0,0.01522074]
[1680599530901,0.97727897,28100.0,28099.0,0.01522074]
[1680599531119,1.00197897,28100.0,28099.0,0.01522074]
[1680599531335,0.3,28099.0,28097.0,0.01647074]
[1680599531576,0.5172779,28098.0,28097.0,0.01647074]
[1680599531799,0.6881579,28098.0,28097.0,0.01647074]
[1680599532063,0.6881579,28098.0,28097.0,0.01641074]
[1680599532720,0.3,28097.0,28096.0,0.02802061]
[1680599532939,0.686724,28097.0,28096.0,0.02802061]
[1680599533168,1.01639815,28097.0,28096.0,0.02802061]
[1680599533870,1.04339815,28097.0,28096.0,0.02802061]
[1680599534060,0.71639815,28097.0,28096.0,0.02754061]
[1680599534282,0.74339815,28097.0,28096.0,0.02754061]
[1680599534498,0.71639815,28097.0,28096.0,0.02754061]
[1680599535648,0.83177803,28097.0,28096.0,0.02754061]
[1680599535875,0.7985687,28097.0,28096.0,0.02754061]
[1680599536345,0.4715687,28097.0,28096.0,0.02754061]
[1680599536582,0.4454447,28097.0,28096.0,0.02754061]
[1680599536808,0.4184447,28097.0,28096.0,0.02754061]
[1680599537041,0.4454447,28097.0,28096.0,0.02754061]
[1680599537273,0.46300313,28097.0,28096.0,0.02754061]
[1680599537498,0.4454447,28097.0,28096.0,0.02754061]
[1680599537742,0.7454447,28097.0,28096.0,0.02754061]
[1680599538411,0.7184447,28097.0,28096.0,0.02754061]
[1680599538626,0.7364447,28097.0,28096.0,0.02754061]
[1680599538841,0.7184447,28097.0,28096.0,0.02754061]
[1680599539084,0.7304447,28097.0,28096.0,0.02754061]
[1680599539300,0.00039067,28097.0,28096.0,0.22754061]
[1680599539518,0.00902044,28101.0,28097.0,0.07265379]
[1680599539756,0.46505572,28098.0,28097.0,0.2145506]
[1680599539982,0.46519528,28098.0,28097.0,0.07265379]
[1680599540196,0.46505572,28098.0,28097.0,0.07265379]
[1680599540699,0.46541549,28098.0,28097.0,0.07265379]
[1680599540914,0.76541549,28098.0,28097.0,0.07265379]
[1680599541136,0.84197099,28098.0,28097.0,0.07265379]
[1680599541787,0.86697099,28098.0,28097.0,0.07265379]
[1680599542001,0.84197099,28098.0,28097.0,0.07265379]
[1680599542222,0.89725199,28098.0,28097.0,0.07265379]
[1680599542442,0.91525199,28098.0,28097.0,0.07265379]
[1680599542948,0.45869627,28098.0,28097.0,0.07265379]
[1680599543182,0.10748033,28098.0,28097.0,0.07265379]
[1680599543431,0.40748033,28098.0,28097.0,0.07265379]
[1680599543865,0.57836033,28098.0,28097.0,0.07265379]
[1680599544089,0.56036033,28098.0,28097.0,0.07265379]
[1680599544304,0.58536033,28098.0,28097.0,0.07265379]
[1680599544536,0.69668936,28098.0,28097.0,0.07265379]
[1680599544748,0.72368936,28098.0,28097.0,0.07265379]
[1680599546075,1.10254432,28098.0,28097.0,0.07265379]
[1680599546291,0.92322432,28098.0,28097.0,0.07265379]
[1680599546955,0.95022432,28098.0,28097.0,0.07265379]
[1680599547169,0.92322432,28098.0,28097.0,0.07265379]
[1680599547393,0.95022432,28098.0,28097.0,0.07265379]
[1680599548069,0.92502432,28098.0,28097.0,0.07265379]
[1680599548743,0.89802432,28098.0,28097.0,0.07265379]
[1680599548964,0.92502432,28098.0,28097.0,0.07265379]
[1680599549910,0.89802432,28098.0,28097.0,0.07265379]
[1680599550133,0.92502432,28098.0,28097.0,0.07265379]
[1680599550354,0.89802432,28098.0,28097.0,0.07265379]
[1680599550575,0.92502432,28098.0,28097.0,0.07265379]
[1680599550794,0.51910936,28098.0,28097.0,0.07265379]
[1680599551240,0.68998936,28098.0,28097.0,0.07265379]
[1680599551454,1.11107094,28098.0,28097.0,0.07265379]
[1680599551668,0.51910936,28098.0,28097.0,0.07265379]
[1680599551891,0.49210936,28098.0,28097.0,0.07265379]
[1680599552982,0.51910936,28098.0,28097.0,0.07265379]
[1680599553236,0.49210936,28098.0,28097.0,0.07265379]
[1680599553462,0.52760936,28098.0,28097.0,0.07265379]
[1680599553908,0.69848936,28098.0,28097.0,0.07265379]
[1680599554144,0.52760936,28098.0,28097.0,0.07265379]
[1680599554617,0.69848936,28098.0,28097.0,0.07265379]
[1680599555774,0.67148936,28098.0,28097.0,0.07265379]
[1680599555991,0.69848936,28098.0,28097.0,0.07265379]
[1680599556244,0.67148936,28098.0,28097.0,0.07265379]
[1680599556470,0.69848936,28098.0,28097.0,0.07265379]
[1680599557566,1.08504091,28098.0,28097.0,0.07265379]
[1680599557785,0.69848936,28098.0,28097.0,0.07265379]
[1680599558000,1.03439985,28098.0,28097.0,0.07265379]
[1680599558221,0.69848936,28098.0,28097.0,0.07265379]
[1680599558447,0.75292122,28098.0,28097.0,0.07265379]
[1680599558888,0.55366033,28098.0,28097.0,0.07265379]
[1680599559340,0.56216033,28098.0,28097.0,0.07265379]
[1680599559840,0.94850129,28098.0,28097.0,0.07265379]
[1680599560060,0.67732446,28098.0,28097.0,0.07265379]
[1680599560938,0.70232446,28098.0,28097.0,0.07265379]
[1680599561809,0.67532446,28098.0,28097.0,0.07265379]
[1680599562029,0.70232446,28098.0,28097.0,0.07265379]
[1680599562268,0.70232446,28098.0,28097.0,0.05323379]
[1680599562494,1.18184019,28098.0,28097.0,0.05323379]
[1680599562713,1.18170063,28098.0,28097.0,0.04843379]
[1680599563157,1.70126153,28098.0,28097.0,0.04843379]
[1680599563897,1.72815968,28098.0,28097.0,0.04843379]
[1680599564119,1.72815968,28098.0,28097.0,0.03601406]
[1680599564789,1.70125728,28098.0,28097.0,0.03199742]
[1680599565006,1.72825728,28098.0,28097.0,0.03199742]
[1680599566351,1.72825728,28098.0,28097.0,0.01987579]
[1680599570723,1.72825728,28098.0,28097.0,0.00030288]
[1680599570940,1.90621728,28098.0,28097.0,0.00030288]
[1680599571635,0.3,28097.0,28096.0,0.02229651]
[1680599571854,0.93951973,28097.0,28096.0,0.02229651]
[1680599572077,1.11039973,28097.0,28096.0,0.02229651]
[1680599572740,1.31039973,28097.0,28096.0,0.00018073]
[1680599573623,1.52562682,28097.0,28096.0,0.00018073]
[1680599574085,0.3,28096.0,28094.0,0.00321389]
[1680599574320,0.3,28094.0,28090.0,0.01001]
[1680599574540,0.3,28094.0,28090.0,0.00105]
[1680599574541,0.17801,28091.0,28090.0,0.00105]
[1680599574764,0.258822,28091.0,28090.0,0.00105]
[1680599575082,0.438262,28091.0,28090.0,0.00105]
[1680599575174,1.22648909,28091.0,28090.0,0.00105]
[1680599575433,1.36339196,28091.0,28090.0,0.00105]
[1680599576312,1.39039196,28091.0,28090.0,0.00105]
[1680599576532,1.36339196,28091.0,28090.0,0.00105]
[1680599576768,1.39073162,28091.0,28090.0,0.00105]
[1680599577887,0.49831316,28090.0,28083.0,0.00184]
[1680599578101,0.49831316,28090.0,28082.0,0.10508295]
[1680599578102,0.20324,28084.0,28082.0,0.01597009]
[1680599578322,0.07885,28083.0,28080.0,0.055948]
[1680599578548,0.054974,28082.0,28080.0,0.03169222]
[1680599578765,0.0085,28081.0,28080.0,0.03169222]
[1680599579001,0.52336356,28081.0,28080.0,0.03169222]
[1680599579459,0.35242356,28081.0,28080.0,0.03169222]
[1680599579673,0.57844276,28081.0,28080.0,0.02825246]
[1680599580359,0.43450276,28081.0,28080.0,0.02825246]
[1680599580564,0.44300276,28081.0,28080.0,0.02825246]
[1680599580790,0.44334033,28081.0,28080.0,0.02825246]
[1680599580989,0.61428033,28081.0,28080.0,0.02825246]
[1680599581244,0.44334033,28081.0,28080.0,0.02825246]
[1680599581775,0.61428033,28081.0,28080.0,0.02825246]
[1680599582648,0.61441989,28081.0,28076.0,0.29045255]
[1680599582889,0.42006462,28080.0,28075.0,0.20018]
[1680599583106,0.053145,28079.0,28075.0,0.195]
[1680599583339,0.05328456,28079.0,28075.0,0.195]
[1680599584670,0.06428456,28079.0,28075.0,0.195]
[1680599584895,0.06271194,28078.0,28075.0,0.195]
[1680599585117,0.06281015,28077.0,28075.0,0.195]
[1680599585340,0.053442,28076.0,28075.0,0.195]
[1680599585848,0.47100394,28076.0,28075.0,0.195]
[1680599586056,0.4711435,28076.0,28075.0,0.195]
[1680599586303,0.37858156,28076.0,28074.0,0.00018]
[1680599586512,0.40640035,28075.0,28072.0,0.11303028]
[1680599586729,0.40640035,28075.0,28073.0,0.10536744]
[1680599586730,0.051784,28074.0,28073.0,0.10536744]
[1680599586977,0.1327093,28074.0,28071.0,0.18849891]
[1680599587134,0.055098,28073.0,28071.0,0.18849891]
[1680599587450,0.30013956,28075.0,28073.0,0.07727734]
[1680599587616,0.30013956,28075.0,28074.0,0.02728444]
[1680599587949,0.30013956,28075.0,28074.0,0.0845]
[1680599588222,0.36877432,28075.0,28074.0,0.0845]
[1680599588641,0.74946363,28075.0,28074.0,0.0845]
[1680599588851,0.36179156,28075.0,28073.0,0.00018]
[1680599589066,0.351618,28074.0,28070.0,0.0844]
[1680599589277,0.005,28072.0,28070.0,0.0844]
[1680599589502,0.0884507,28071.0,28070.0,0.0844]
[1680599589727,0.0357577,28071.0,28070.0,0.16953186]
[1680599589938,0.0357577,28071.0,28070.0,0.08513186]
[1680599590150,0.0357577,28071.0,28068.0,0.37158]
[1680599590370,0.0357577,28071.0,28069.0,0.03253764]
[1680599590581,0.005,28072.0,28070.0,0.0845]
[1680599590857,0.053219,28071.0,28068.0,0.00018]
[1680599591075,0.053219,28071.0,28067.0,0.19767217]
[1680599591301,0.34205906,28070.0,28068.0,0.0845]
[1680599591734,0.3,28069.0,28068.0,0.1827755]
[1680599591954,0.34331572,28070.0,28069.0,0.02999999]
[1680599592159,0.69548016,28070.0,28069.0,0.02999999]
[1680599592386,0.00033527,28070.0,28069.0,0.1718968]
[1680599593446,0.055418,28079.0,28075.0,0.14189681]
[1680599593651,0.00018,28079.0,28075.0,0.14189681]
[1680599593857,0.35593007,28078.0,28074.0,0.28044]
[1680599594063,0.0085,28077.0,28074.0,0.28044]
[1680599594490,0.0085,28077.0,28074.0,0.27944]
[1680599594725,0.3085,28077.0,28074.0,0.27944]
[1680599594962,0.00032256,28076.0,28074.0,0.195]
[1680599595174,0.33298402,28076.0,28074.0,0.195]
[1680599595388,0.33316402,28076.0,28074.0,0.195]
[1680599595598,0.33316402,28076.0,28074.0,0.196]
[1680599595814,0.33316402,28076.0,28074.0,0.195]
[1680599596072,0.34216402,28076.0,28074.0,0.196]
[1680599596285,0.48261784,28075.0,28074.0,0.196]
[1680599596498,0.78279784,28075.0,28074.0,0.196]
[1680599597338,0.78279784,28075.0,28074.0,0.195]
[1680599597551,0.78279784,28075.0,28074.0,0.196]
[1680599597765,0.78279784,28075.0,28073.0,0.00018]
[1680599597982,0.43662093,28074.0,28071.0,0.0845]
[1680599598191,0.43662093,28074.0,28070.0,0.0011858]
[1680599598192,0.063185,28073.0,28070.0,0.0011858]
[1680599598423,0.053712,28072.0,28070.0,0.0010058]
[1680599598636,0.0067212,28071.0,28070.0,0.0010058]
[1680599598855,0.0587662,28071.0,28070.0,0.0010058]
[1680599599062,0.50718561,28071.0,28070.0,0.0010058]
[1680599599272,0.80736561,28071.0,28070.0,0.0010058]
[1680599599912,0.3674462,28071.0,28070.0,0.0010058]
[1680599600125,0.70533107,28071.0,28070.0,0.0010058]
[1680599600334,0.82650496,28071.0,28070.0,0.0010058]
[1680599600767,0.84750496,28071.0,28070.0,0.0020058]
[1680599602951,0.8478137,28071.0,28070.0,0.0020058]
[1680599603170,0.88270737,28071.0,28070.0,0.0020058]
[1680599603845,0.86748617,28071.0,28070.0,0.0020058]
[1680599607824,0.35638241,28071.0,28070.0,0.0020058]
[1680599608061,0.41071941,28071.0,28070.0,0.0020058]
[1680599609187,0.35638241,28071.0,28070.0,0.0020058]
[1680599609633,0.35638241,28071.0,28070.0,0.18009906]
[1680599609634,0.32148874,28071.0,28070.0,0.18009906]
[1680599609862,0.02148874,28071.0,28070.0,0.18009906]
[1680599610133,0.02130874,28071.0,28070.0,0.18009906]
[1680599610593,0.00030874,28071.0,28070.0,0.17909906]
[1680599611046,0.34795768,28073.0,28070.0,0.17909906]
[1680599611263,0.34795768,28073.0,28070.0,0.10459906]
[1680599611264,0.001,28071.0,28070.0,0.10459906]
[1680599611482,0.001,28071.0,28070.0,0.18889906]
[1680599612163,0.30030895,28072.0,28070.0,0.17889906]
[1680599612385,0.30030895,28072.0,28071.0,0.0844]
[1680599612609,0.30048895,28072.0,28071.0,0.0844]
[1680599613483,0.8298299,28072.0,28071.0,0.0844]
[1680599613702,0.8298299,28072.0,28070.0,0.0010058]
[1680599613703,0.42649589,28071.0,28070.0,0.0010058]
[1680599613967,0.72649589,28071.0,28070.0,0.0010058]
[1680599614424,0.67305789,28071.0,28070.0,0.0010058]
[1680599614876,0.3,28071.0,28070.0,0.0010058]
[1680599615106,0.00318,28072.0,28070.0,0.0908303]
[1680599615332,0.31379508,28073.0,28070.0,0.0908303]
[1680599615549,0.74583478,28073.0,28070.0,0.0908303]
[1680599615764,0.009,28071.0,28070.0,0.0918303]
[1680599615990,0.74065478,28073.0,28070.0,0.0908303]
[1680599616222,0.74065478,28073.0,28070.0,0.17901325]
[1680599616485,0.81541826,28073.0,28070.0,0.17501325]
[1680599616707,0.46931043,28072.0,28070.0,0.08918875]
[1680599616937,0.79983,28071.0,28070.0,0.0050058]
[1680599617154,0.91071051,28071.0,28070.0,0.0050058]
[1680599618066,0.91089051,28071.0,28070.0,0.0050058]
[1680599618293,0.91089051,28071.0,28070.0,0.0010058]
[1680599618532,0.47774451,28071.0,28070.0,0.0010058]
[1680599618749,0.38917274,28071.0,28070.0,0.0020058]
[1680599618966,0.06717274,28071.0,28070.0,0.0010058]
[1680599619196,0.08899274,28071.0,28070.0,0.0020058]
[1680599619435,0.14306869,28071.0,28070.0,0.0010058]
[1680599619657,0.14324869,28071.0,28070.0,0.0010058]
[1680599619883,0.54619338,28071.0,28070.0,0.0020058]
[1680599620102,0.44324869,28071.0,28070.0,0.0010058]
[1680599620358,0.4429868,28071.0,28070.0,0.0010058]
[1680599621432,0.4649868,28071.0,28070.0,0.0020058]
[1680599621696,0.4429868,28071.0,28070.0,0.0010058]
[1680599621917,0.4649868,28071.0,28070.0,0.0020058]
[1680599622605,0.4649868,28071.0,28064.0,0.5644672]
[1680599622606,0.2,28067.0,28065.0,0.16792296]
[1680599622834,0.005,28061.0,28060.0,0.006172]
[1680599623076,0.0302,28061.0,28058.0,0.18882296]
[1680599623321,0.0302,28061.0,28059.0,0.42095941]
[1680599623555,0.005,28061.0,28060.0,0.42475918]
[1680599624713,0.005,28061.0,28060.0,0.12475918]
[1680599624943,0.005,28061.0,28058.0,0.0209]
[1680599625172,0.04362762,28060.0,28058.0,0.15403871]
[1680599626150,0.05762762,28060.0,28058.0,0.15403871]
[1680599626378,0.05762762,28060.0,28058.0,0.13113132]
[1680599626610,0.05762762,28060.0,28059.0,0.10607521]
[1680599626890,0.00030623,28059.0,28058.0,0.1295878]
[1680599627119,0.00030623,28059.0,28058.0,0.0209]
[1680599627565,0.41338161,28059.0,28058.0,0.0209]
[1680599627787,0.75887563,28059.0,28058.0,0.0209]
[1680599628230,0.76687563,28059.0,28058.0,0.0209]
[1680599628457,0.75887563,28059.0,28058.0,0.0209]
[1680599628678,0.77287563,28059.0,28058.0,0.0209]
[1680599629796,0.72738161,28059.0,28058.0,0.0209]
[1680599630243,0.31430623,28059.0,28058.0,0.0209]
[1680599630462,0.01430623,28059.0,28058.0,0.0209]
[1680599630682,0.74366446,28059.0,28058.0,0.0209]
[1680599634680,0.31430623,28059.0,28058.0,0.0209]
[1680599634901,0.69797968,28059.0,28058.0,0.0209]
[1680599635344,0.36699871,28059.0,28058.0,0.0209]
[1680599635557,0.77366711,28059.0,28058.0,0.0209]
[1680599636218,0.77384711,28059.0,28058.0,0.0209]
[1680599636651,0.72115463,28059.0,28058.0,0.0209]
[1680599636872,0.72097463,28059.0,28058.0,0.0209]
[1680599637779,0.72115463,28059.0,28058.0,0.0209]
[1680599638435,0.77306263,28059.0,28058.0,0.0209]
[1680599640685,0.37139423,28059.0,28058.0,0.16279681]
[1680599640904,0.01948623,28059.0,28058.0,0.15783231]
[1680599641134,0.01930623,28059.0,28058.0,0.0209]
[1680599642488,0.31930623,28059.0,28058.0,0.0209]
[1680599642935,0.37292123,28059.0,28058.0,0.0209]
[1680599643390,0.31930623,28059.0,28058.0,0.0209]
[1680599643613,0.31930623,28059.0,28058.0,0.15047755]
[1680599646412,0.01930623,28059.0,28058.0,0.15047755]
[1680599646853,0.01421386,28059.0,28058.0,0.15047755]
[1680599647046,0.01432327,28059.0,28058.0,0.15855259]
[1680599647268,0.01432327,28059.0,28058.0,0.02108]
[1680599647517,0.01432327,28059.0,28058.0,0.13550443]
[1680599647748,0.00032327,28059.0,28058.0,0.13550443]
[1680599647975,0.00232327,28059.0,28058.0,0.13750443]
[1680599648203,0.00032327,28059.0,28058.0,0.13568443]
[1680599648426,0.00132327,28059.0,28058.0,0.13768443]
[1680599648653,0.00132327,28059.0,28058.0,0.02308]
[1680599648883,0.00132327,28059.0,28058.0,0.14144681]
[1680599649104,0.001,28059.0,28058.0,0.15308221]
[1680599650688,0.001,28059.0,28058.0,0.16927759]
[1680599650907,0.001,28059.0,28058.0,0.1074]
[1680599651124,0.001,28059.0,28058.0,0.22542576]
[1680599651349,0.001,28059.0,28058.0,0.22560576]
[1680599652270,0.001,28059.0,28058.0,0.10758]
[1680599652493,0.001,28059.0,28058.0,0.1074]
[1680599652997,0.001,28059.0,28058.0,0.23332553]
[1680599653222,0.001,28059.0,28058.0,0.23350553]
[1680599653648,0.001,28059.0,28058.0,0.24427814]
[1680599653815,0.001,28059.0,28058.0,0.10758]
[1680599654035,0.001,28059.0,28058.0,0.1074]
[1680599654925,0.00090001,28059.0,28058.0,0.31834377]
[1680599655140,0.00090001,28059.0,28058.0,0.73921859]
[1680599655351,0.00090001,28059.0,28058.0,0.78009778]
[1680599655549,0.00090001,28059.0,28058.0,1.00007402]
[1680599655777,0.00869301,28065.0,28061.0,0.195]